bitfinex/quotes_BTCUSD_20251015
["timestamp","ask_amount","ask_price","bid_price","bid_amount"]
[1760550829687,0.00125403,111230.0,111220.0,2.08254074]
[1760550830228,0.00125403,111230.0,111220.0,1.97438074]
[1760550830566,0.00125403,111230.0,111220.0,2.08754074]
[1760550830770,0.00125403,111230.0,111220.0,1.97438074]
[1760550831214,0.00125403,111230.0,111220.0,2.08754074]
[1760550831737,0.00125403,111230.0,111220.0,1.97438074]
[1760550832572,0.00125403,111230.0,111220.0,1.0395604]
[1760550832770,0.00125403,111230.0,111220.0,1.1527204]
[1760550833012,0.00125403,111230.0,111220.0,1.18890268]
[1760550833217,0.00125403,111230.0,111220.0,1.49195251]
[1760550833457,0.00125403,111230.0,111220.0,1.48695251]
[1760550833674,0.00125403,111230.0,111220.0,1.48895251]
[1760550833877,0.00125403,111230.0,111220.0,1.49095251]
[1760550834028,0.00125403,111230.0,111220.0,1.60411251]
[1760550834460,0.00125403,111230.0,111220.0,1.18790268]
[1760550834872,0.00125403,111230.0,111220.0,0.13870908]
[1760550835067,0.00125403,111230.0,111220.0,0.28235057]
[1760550835227,0.00125403,111230.0,111220.0,0.6985604]
[1760550835428,0.00125403,111230.0,111220.0,1.0385604]
[1760550835665,0.00125403,111230.0,111220.0,1.1517204]
[1760550836068,0.00125403,111230.0,111220.0,0.73551057]
[1760550836287,0.41746386,111230.0,111220.0,0.62235057]
[1760550836497,0.00125403,111230.0,111220.0,0.62235057]
[1760550837075,0.00125403,111230.0,111220.0,0.73351057]
[1760550837279,0.00125403,111230.0,111220.0,0.61835057]
[1760550837484,0.00125403,111230.0,111220.0,0.61935057]
[1760550837678,0.00125403,111230.0,111220.0,0.4405268]
[1760550838005,0.00125403,111230.0,111220.0,0.62035057]
[1760550838409,0.00125403,111230.0,111220.0,0.73351057]
[1760550838615,0.00125403,111230.0,111220.0,0.62035057]
[1760550838796,0.00125403,111230.0,111220.0,0.73351057]
[1760550840016,0.00125403,111230.0,111220.0,0.43169012]
[1760550840215,0.65446368,111230.0,111220.0,0.09169012]
[1760550840418,0.18106163,111230.0,111220.0,0.09169012]
[1760550842353,0.65446368,111230.0,111220.0,0.09169012]
[1760550843663,0.18106163,111230.0,111220.0,0.09169012]
[1760550843886,0.65446368,111230.0,111220.0,0.09169012]
[1760550845654,0.00125403,111230.0,111220.0,0.09169012]
[1760550845907,0.00125403,111230.0,111220.0,0.27151389]
[1760550846936,0.00125403,111230.0,111220.0,0.09169012]
[1760550847377,0.00125403,111230.0,111220.0,0.27151389]
[1760550847586,0.00125403,111230.0,111220.0,0.09169012]
[1760550847924,0.00125403,111230.0,111220.0,0.27151389]
[1760550850086,0.00125403,111230.0,111220.0,0.09169012]
[1760550850291,0.00125403,111230.0,111220.0,0.27151389]
[1760550852328,0.00125403,111230.0,111220.0,0.38471389]
[1760550852498,0.00125403,111230.0,111220.0,0.27151389]
[1760550856067,0.00125403,111230.0,111220.0,1.4571617]
[1760550856287,0.00125403,111230.0,111220.0,1.3439617]
[1760550856695,0.00125403,111230.0,111220.0,1.4571617]
[1760550856897,0.00125403,111230.0,111220.0,1.38014398]
[1760550857135,0.00125403,111230.0,111220.0,1.49334398]
[1760550857329,0.00125403,111230.0,111220.0,1.49234398]
[1760550857805,0.00125403,111230.0,111220.0,1.37914398]
[1760550858007,0.00125403,111230.0,111220.0,0.76089617]
[1760550858214,0.00125403,111230.0,111220.0,0.75989617]
[1760550858440,0.00125403,111230.0,111220.0,1.37814398]
[1760550858661,0.00125403,111230.0,111220.0,1.3459617]
[1760550858897,0.00125403,111230.0,111220.0,1.38214398]
[1760550859532,0.00125403,111230.0,111220.0,1.49534398]
[1760550860184,0.00125403,111230.0,111220.0,1.38214398]
[1760550860591,0.00125403,111230.0,111220.0,1.49534398]
[1760550860785,0.00125403,111230.0,111220.0,1.38214398]
[1760550860916,0.00125403,111230.0,111220.0,1.49534398]
[1760550861532,0.00125403,111230.0,111220.0,1.38214398]
[1760550861733,0.00125403,111230.0,111220.0,1.49534398]
[1760550861938,0.00125403,111230.0,111220.0,1.38214398]
[1760550862217,0.00125403,111230.0,111220.0,1.4591617]
[1760550862407,0.00125403,111230.0,111220.0,1.38214398]
[1760550862566,0.00125403,111230.0,111220.0,1.49534398]
[1760550862765,0.00125403,111230.0,111220.0,1.38214398]
[1760550863337,0.00125403,111230.0,111220.0,1.49534398]
[1760550863558,0.02379307,111240.0,111230.0,0.55598988]
[1760550863782,0.02379307,111240.0,111230.0,1.37812781]
[1760550864002,0.02379307,111240.0,111230.0,1.49128781]
[1760550864201,0.02379307,111240.0,111230.0,1.37812781]
[1760550864622,0.02379307,111240.0,111230.0,1.49328781]
[1760550864752,0.02379307,111240.0,111230.0,1.38212781]
[1760550864959,0.02379307,111240.0,111230.0,1.38012781]
[1760550865167,0.02379307,111240.0,111230.0,1.38112781]
[1760550865375,0.02379307,111240.0,111230.0,1.49628781]
[1760550865593,0.02379307,111240.0,111230.0,1.38312781]
[1760550866358,0.02379307,111240.0,111230.0,1.49628781]
[1760550868157,0.02379307,111240.0,111230.0,1.38312781]
[1760550868378,0.02379307,111240.0,111230.0,1.49628781]
[1760550868588,0.02379307,111240.0,111230.0,1.38312781]
[1760550868800,0.02379307,111240.0,111230.0,1.49628781]
[1760550869266,0.02437998,111240.0,111230.0,1.49628781]
[1760550869490,0.02437998,111240.0,111230.0,1.38312781]
[1760550869632,0.02437998,111240.0,111230.0,1.49628781]
[1760550871372,0.02437998,111240.0,111230.0,1.38312781]
[1760550871569,0.02437998,111240.0,111230.0,1.49628781]
[1760550871792,0.02437998,111240.0,111230.0,1.38312781]
[1760550872021,0.02437998,111240.0,111230.0,1.49628781]
[1760550872592,0.02437998,111240.0,111230.0,1.38312781]
[1760550873027,0.02437998,111240.0,111230.0,1.49628781]
[1760550873404,0.02437998,111240.0,111230.0,1.38312781]
[1760550874278,0.02437998,111240.0,111230.0,1.49628781]
[1760550874771,0.02437998,111240.0,111230.0,1.38312781]
[1760550875099,0.02437998,111240.0,111230.0,1.49628781]
[1760550876564,0.0002,111250.0,111240.0,0.51979144]
[1760550876778,0.0002,111250.0,111240.0,1.45508937]
[1760550876779,0.00069992,111250.0,111240.0,1.45508937]
[1760550876981,0.00069992,111250.0,111240.0,1.34192937]
[1760550877190,0.00069992,111250.0,111240.0,1.45508937]
[1760550877776,0.00069992,111250.0,111240.0,1.34592937]
[1760550877975,0.00069992,111250.0,111240.0,1.45908937]
[1760550878541,0.00069992,111250.0,111240.0,0.72664156]
[1760550878805,0.00069992,111250.0,111240.0,1.45908937]
[1760550879042,0.00069992,111250.0,111240.0,1.34592937]
[1760550879259,0.00069992,111250.0,111240.0,1.45908937]
[1760550879482,0.00069992,111250.0,111240.0,1.55905198]
[1760550880128,0.00069992,111250.0,111240.0,1.44589198]
[1760550880564,0.00069992,111250.0,111240.0,1.55905198]
[1760550881200,0.00069992,111250.0,111240.0,1.59523426]
[1760550881413,0.00069992,111250.0,111240.0,1.48207426]
[1760550881626,0.00069992,111250.0,111240.0,1.50908767]
[1760550881843,0.00069992,111250.0,111240.0,1.62224767]
[1760550882446,0.00128675,111250.0,111240.0,1.62224767]
[1760550882673,0.00128675,111250.0,111240.0,1.50908767]
[1760550883107,0.00128675,111250.0,111240.0,1.62224767]
[1760550883314,0.00128675,111250.0,111240.0,1.50908767]
[1760550884164,0.00128675,111250.0,111240.0,1.62224767]
[1760550885933,0.02688312,111260.0,111250.0,0.51977528]
[1760550886155,0.02703304,111260.0,111250.0,1.02567061]
[1760550886610,4.493e-05,111260.0,111250.0,1.4780581]
[1760550886838,0.03017316,111280.0,111270.0,0.55592524]
[1760550887034,0.03017316,111280.0,111270.0,0.75877536]
[1760550887248,0.03017316,111280.0,111270.0,0.64561536]
[1760550887473,0.03017316,111280.0,111270.0,1.06182057]
[1760550887700,0.03017316,111280.0,111270.0,0.64561536]
[1760550887902,0.03017316,111280.0,111270.0,1.17498057]
[1760550888032,0.03017316,111280.0,111270.0,0.65578172]
[1760550888236,0.03017316,111280.0,111270.0,1.07198693]
[1760550888428,0.03017316,111280.0,111270.0,1.18510693]
[1760550888633,0.03017316,111280.0,111270.0,1.13818232]
[1760550888874,0.03017316,111280.0,111270.0,1.25130232]
[1760550889116,0.03017316,111280.0,111270.0,1.25230232]
[1760550889660,0.03017316,111280.0,111270.0,1.13918232]
[1760550889860,0.03017316,111280.0,111270.0,1.25230232]
[1760550890053,0.03017316,111280.0,111270.0,1.18610693]
[1760550890502,0.03017316,111280.0,111270.0,1.07298693]
[1760550891959,0.03193311,111280.0,111270.0,1.07298693]
[1760550892176,0.03193311,111280.0,111270.0,1.18610693]
[1760550892406,0.03193311,111280.0,111270.0,1.07298693]
[1760550892611,0.03193311,111280.0,111270.0,1.18610693]
[1760550892935,0.03193311,111280.0,111270.0,1.07298693]
[1760550893176,0.03193311,111280.0,111270.0,1.1404984]
[1760550893393,0.03193311,111280.0,111270.0,1.2536184]
[1760550893730,0.03193311,111280.0,111270.0,1.14992465]
[1760550893996,0.03193311,111280.0,111270.0,0.73371944]
[1760550894769,0.03193311,111280.0,111270.0,0.62059944]
[1760550895043,0.03193311,111280.0,111270.0,0.44085648]
[1760550895265,0.03193311,111280.0,111270.0,0.09169012]
[1760550895703,0.21165992,111280.0,111270.0,0.09169012]
[1760550896140,0.69015343,111280.0,111270.0,0.09169012]
[1760550897173,0.62786513,111280.0,111270.0,0.09169012]
[1760550897373,0.21165992,111280.0,111270.0,0.09169012]
[1760550897943,0.62786513,111280.0,111270.0,0.09169012]
[1760550900755,0.62786513,111280.0,111270.0,0.09069012]
[1760550901208,0.62786513,111280.0,111270.0,0.09169012]
[1760550901410,0.62786513,111280.0,111270.0,0.09069012]
[1760550901633,0.24682015,111280.0,111270.0,0.09069012]
[1760550901843,0.66302536,111280.0,111270.0,0.09169012]
[1760550902287,0.62786513,111280.0,111270.0,0.09069012]
[1760550903131,0.62786513,111280.0,111270.0,0.09169012]
[1760550904235,0.21165992,111280.0,111270.0,0.09169012]
[1760550904455,0.62786513,111280.0,111270.0,0.09169012]
[1760550904670,0.21165992,111280.0,111270.0,0.09169012]
[1760550904916,0.66700276,111280.0,111270.0,0.09169012]
[1760550905600,0.21165992,111280.0,111270.0,0.09169012]
[1760550905817,0.62786513,111280.0,111270.0,0.09169012]
[1760550906934,0.21165992,111280.0,111270.0,0.09169012]
[1760550907170,0.62786513,111280.0,111270.0,0.09169012]
[1760550907812,0.21165992,111280.0,111270.0,0.09169012]
[1760550908037,0.62786513,111280.0,111270.0,0.09169012]
[1760550908930,0.21165992,111280.0,111270.0,0.09169012]
[1760550909156,0.62786513,111280.0,111270.0,0.09169012]
[1760550910791,0.62786513,111280.0,111270.0,0.09259012]
[1760550911188,1.04407034,111280.0,111270.0,0.0029]
[1760550911389,1.55076634,111280.0,111270.0,0.0029]
[1760550911584,1.55076634,111280.0,111270.0,0.09259012]
[1760550911585,0.301342,111280.0,111270.0,0.09259012]
[1760550911825,1.04460948,111280.0,111270.0,0.09259012]
[1760550912178,1.04460948,111280.0,111270.0,0.09159012]
[1760550912307,1.04460948,111280.0,111270.0,0.09059012]
[1760550913525,1.80108426,111280.0,111270.0,0.0009]
[1760550913752,6.81108426,111280.0,111270.0,0.0009]
[1760550913979,7.37206489,111280.0,111270.0,1e-08]
[1760550914207,8.25802463,111280.0,111270.0,1e-08]
[1760550914440,8.24119673,111280.0,111270.0,1e-08]
[1760550914758,7.40824717,111280.0,111270.0,1e-08]
[1760550914968,6.99177239,111280.0,111270.0,1e-08]
[1760550915164,8.33088685,111280.0,111270.0,1e-08]
[1760550917816,8.4499227,111280.0,111270.0,1e-08]
[1760550918022,8.46671964,111280.0,111270.0,1e-08]
[1760550918224,8.37190964,111280.0,111270.0,1e-08]
[1760550918778,8.36349601,111280.0,111270.0,1e-08]
[1760550918990,8.37189178,111280.0,111270.0,1e-08]
[1760550919192,8.37188705,111280.0,111270.0,1e-08]
[1760550919399,8.40418818,111280.0,111270.0,1e-08]
[1760550919554,8.37996233,111280.0,111270.0,1e-08]
[1760550920378,8.42841403,111280.0,111270.0,1e-08]
[1760550920790,5.92956535,111280.0,111270.0,1e-08]
[1760550921010,8.42840992,111280.0,111270.0,1e-08]
[1760550921462,8.42839726,111280.0,111270.0,1e-08]
[1760550922431,5.89724745,111280.0,111270.0,1e-08]
[1760550922678,6.27753995,111280.0,111270.0,1e-08]
[1760550922883,8.39609613,111280.0,111270.0,1e-08]
[1760550925482,8.34764443,111280.0,111270.0,1e-08]
[1760550925707,8.34764058,111280.0,111270.0,1e-08]
[1760550927384,8.41224285,111280.0,111270.0,1e-08]
[1760550928230,0.55595756,111250.0,111240.0,1e-08]
[1760550928465,1.1148483,111250.0,111240.0,1e-08]
[1760550928675,0.1798076,111230.0,111220.0,0.0717521]
[1760550928888,0.59628238,111230.0,111220.0,0.0717521]
[1760550929120,0.17983994,111210.0,111200.0,0.41506577]
[1760550929342,0.17983994,111210.0,111200.0,0.09300379]
[1760550929343,0.59631472,111210.0,111200.0,0.09300379]
[1760550929578,0.6859968,111210.0,111200.0,0.09300379]
[1760550929810,0.59631472,111210.0,111200.0,0.09300379]
[1760550930030,0.17983994,111210.0,111200.0,0.09300379]
[1760550930247,0.59631472,111210.0,111200.0,0.09300379]
[1760550930444,0.59631472,111210.0,111200.0,0.09350371]
[1760550930645,0.17983994,111210.0,111200.0,0.09450371]
[1760550930853,0.60530882,111210.0,111200.0,0.09450371]
[1760550931262,0.62462124,111210.0,111200.0,0.09450371]
[1760550931468,0.71430332,111210.0,111200.0,0.09650371]
[1760550931648,0.6859968,111210.0,111200.0,0.09650371]
[1760550932051,0.26952202,111210.0,111200.0,0.09650371]
[1760550932262,0.59631472,111210.0,111200.0,0.09650371]
[1760550933327,0.61562378,111210.0,111200.0,0.09650371]
[1760550934171,0.199149,111210.0,111200.0,0.09650371]
[1760550934585,0.61562378,111210.0,111200.0,0.09650371]
[1760550935462,0.199149,111210.0,111200.0,0.09650371]
[1760550935667,0.69758554,111210.0,111200.0,0.09650371]
[1760550937339,0.199149,111210.0,111200.0,0.09650371]
[1760550938314,0.61562378,111210.0,111200.0,0.09650371]
[1760550938538,0.199149,111210.0,111200.0,0.09650371]
[1760550939160,0.61562378,111210.0,111200.0,0.09650371]
[1760550940226,0.63977922,111210.0,111200.0,0.09650371]
[1760550941254,0.65657453,111210.0,111200.0,0.09650371]
[1760550942462,0.24009975,111210.0,111200.0,0.09650371]
[1760550942868,0.65657453,111210.0,111200.0,0.09650371]
[1760550943273,0.68878179,111210.0,111200.0,0.09650371]
[1760550943476,0.69718996,111210.0,111200.0,0.09650371]
[1760550945036,0.6649827,111210.0,111200.0,0.09650371]
[1760550945966,0.75466478,111210.0,111200.0,0.09650371]
[1760550946166,0.33819,111210.0,111200.0,0.09650371]
[1760550946362,0.75466478,111210.0,111200.0,0.09650371]
[1760550946850,0.6649827,111210.0,111200.0,0.09650371]
[1760550950066,0.66502353,111210.0,111200.0,0.09650371]
[1760550951252,0.66520626,111210.0,111200.0,0.09650371]
[1760550952110,0.66521801,111210.0,111200.0,0.09650371]
[1760550952311,0.66521921,111210.0,111200.0,0.09650371]
[1760550953156,0.24874443,111210.0,111200.0,0.09650371]
[1760550953390,0.06048337,111210.0,111200.0,0.09650371]
[1760550953618,0.01939877,111210.0,111200.0,1.12729499]
[1760550953829,0.01939877,111210.0,111200.0,1.10930938]
[1760550954021,0.01939877,111210.0,111200.0,0.6928346]
[1760550954223,0.20407364,111220.0,111200.0,0.6928346]
[1760550954224,0.17982518,111220.0,111200.0,0.6928346]
[1760550954441,0.19923076,111220.0,111210.0,0.08969012]
[1760550955978,0.19922935,111220.0,111210.0,0.09169012]
[1760550956917,0.19922935,111220.0,111210.0,0.09269012]
[1760550958340,0.61570413,111220.0,111210.0,0.09269012]
[1760550959391,0.19922935,111220.0,111210.0,0.09269012]
[1760550959595,1.03217891,111220.0,111210.0,0.09269012]
[1760550959818,1.05745694,111220.0,111210.0,0.003]
[1760550960036,1.50613898,111220.0,111210.0,0.003]
[1760550960924,1.50613898,111220.0,111210.0,0.002]
[1760550961170,1.53041035,111220.0,111210.0,0.002]
[1760550961395,1.20361765,111220.0,111210.0,0.002]
[1760550961627,1.20361773,111220.0,111210.0,0.002]
[1760550962265,0.17983994,111210.0,111200.0,0.00381359]
[1760550962483,0.6157203,111210.0,111200.0,0.09350371]
[1760550963104,0.64275749,111210.0,111200.0,0.09350371]
[1760550963337,0.67105028,111210.0,111200.0,0.09350371]
[1760550963546,0.67105028,111210.0,111200.0,0.09450371]
[1760550963735,0.64275749,111210.0,111200.0,0.09550371]
[1760550965766,0.22628271,111210.0,111200.0,0.09550371]
[1760550965968,0.62335191,111210.0,111200.0,0.09550371]
[1760550966190,0.64275749,111210.0,111200.0,0.09550371]
[1760550966409,0.62335191,111210.0,111200.0,0.09550371]
[1760550966583,0.71303399,111210.0,111200.0,0.09550371]
[1760550967102,0.29655921,111210.0,111200.0,0.09550371]
[1760550967319,0.71303399,111210.0,111200.0,0.09550371]
[1760550968176,0.61835191,111210.0,111200.0,0.09550371]
[1760550968808,0.02703719,111210.0,111200.0,0.09550371]
[1760550969014,0.02703719,111210.0,111200.0,0.51197849]
[1760550969015,0.17983994,111210.0,111200.0,0.51197849]
[1760550969426,0.6233343,111220.0,111200.0,0.09550371]
[1760550969635,0.20686969,111220.0,111210.0,0.08969012]
[1760550969835,0.17983394,111220.0,111210.0,0.08969012]
[1760550970041,0.59630872,111220.0,111210.0,0.08969012]
[1760550971063,0.17982377,111220.0,111210.0,0.08969012]
[1760550971878,0.17982377,111220.0,111210.0,0.09069012]
[1760550972092,0.17982377,111220.0,111210.0,0.08969012]
[1760550972301,0.17982377,111220.0,111210.0,0.09069012]
[1760550973061,0.02703432,111230.0,111210.0,0.2705296]
[1760550973273,0.17980842,111230.0,111210.0,0.68700438]
[1760550973475,0.17980842,111230.0,111210.0,0.3837296]
[1760550973731,0.6324739,111240.0,111210.0,0.3847296]
[1760550973907,0.1798081,111230.0,111210.0,0.3847296]
[1760550974130,0.1798081,111230.0,111210.0,0.2705296]
[1760550974334,0.1798081,111230.0,111210.0,0.3837296]
[1760550974545,0.21582693,111240.0,111210.0,0.80936856]
[1760550974747,0.21582693,111240.0,111210.0,0.69716856]
[1760550974958,0.68276286,111240.0,111210.0,0.81036856]
[1760550975171,0.68276286,111240.0,111210.0,0.80936856]
[1760550975377,0.26611589,111240.0,111210.0,0.81036856]
[1760550975580,0.1798076,111230.0,111210.0,0.80936856]
[1760550975782,0.1798076,111230.0,111210.0,0.80836856]
[1760550975986,0.1798076,111230.0,111210.0,0.80936856]
[1760550976217,0.1798076,111230.0,111210.0,0.69616856]
[1760550976630,0.21582693,111240.0,111210.0,0.69616856]
[1760550976838,0.21582693,111240.0,111210.0,0.80936856]
[1760550977041,0.21582693,111240.0,111210.0,0.81036856]
[1760550977251,0.17980848,111230.0,111210.0,0.81036856]
[1760550977457,0.17980848,111230.0,111210.0,0.80936856]
[1760550977909,0.18879556,111240.0,111210.0,0.39272159]
[1760550978114,0.18879556,111240.0,111210.0,0.28052159]
[1760550978319,0.60544253,111240.0,111210.0,0.39272159]
[1760550978728,0.60544253,111240.0,111210.0,0.28152159]
[1760550978964,0.60544253,111240.0,111210.0,0.39172159]
[1760550979180,0.18879556,111240.0,111220.0,0.17982304]
[1760550979389,0.60544253,111240.0,111230.0,0.08969012]
[1760550981288,0.59645296,111240.0,111230.0,0.08969012]
[1760550981494,0.59645296,111240.0,111230.0,0.09069012]
[1760550981913,0.17980599,111240.0,111230.0,0.09169012]
[1760550982115,0.59645296,111240.0,111230.0,0.09169012]
[1760550982399,0.17980599,111240.0,111230.0,0.09169012]
[1760550985791,0.17979144,111240.0,111230.0,0.09169012]
[1760550986010,0.21579458,111250.0,111230.0,0.09169012]
[1760550986228,0.17979144,111240.0,111230.0,0.09169012]
[1760550986820,0.17979144,111240.0,111230.0,0.09069012]
[1760550988522,0.59643841,111240.0,111230.0,0.09069012]
[1760550988949,0.59643841,111240.0,111230.0,0.09169012]
[1760550989992,0.17979144,111240.0,111230.0,0.09169012]
[1760550990174,0.59643841,111240.0,111230.0,0.09169012]
[1760550990817,0.17979144,111240.0,111230.0,0.09169012]
[1760550991025,0.59643841,111240.0,111230.0,0.09169012]
[1760550991435,0.17979144,111240.0,111230.0,0.09169012]
[1760550991642,0.62408244,111240.0,111230.0,0.09169012]
[1760550992053,0.17979144,111240.0,111230.0,0.09169012]
[1760550992267,0.59643841,111240.0,111230.0,0.09169012]
[1760550992876,0.17979144,111240.0,111230.0,0.09169012]
[1760550993082,0.59643841,111240.0,111230.0,0.09169012]
[1760550993675,0.17979144,111240.0,111230.0,0.09169012]
[1760550993918,0.59643841,111240.0,111230.0,0.09169012]
[1760550994538,0.6692983,111240.0,111230.0,0.09169012]
[1760550995354,1.08594527,111240.0,111230.0,0.002]
[1760550995771,0.59265133,111240.0,111230.0,0.002]
[1760550995979,1.42594527,111240.0,111230.0,0.002]
[1760550997568,0.17979144,111240.0,111230.0,0.002]
[1760550997779,0.59643841,111240.0,111230.0,0.002]
[1760550998368,0.17979144,111240.0,111230.0,0.09169012]
[1760550998787,0.59643841,111240.0,111230.0,0.09169012]
[1760550999144,0.67856689,111240.0,111230.0,0.09169012]
[1760551001768,0.20680655,111250.0,111230.0,0.2714942]
[1760551001962,0.17977613,111250.0,111240.0,0.08969012]
[1760551003107,0.00013465,111250.0,111240.0,0.27048156]
[1760551003948,0.00013465,111250.0,111240.0,0.68612853]
[1760551004165,0.00013465,111250.0,111240.0,0.68712853]
[1760551004568,0.00013465,111250.0,111240.0,1.02612853]
[1760551004788,0.00013465,111250.0,111240.0,1.03612944]
[1760551004949,0.00013465,111250.0,111240.0,1.14928944]
[1760551005634,0.00013465,111250.0,111240.0,1.03612944]
[1760551005841,0.00013465,111250.0,111240.0,1.03512944]
[1760551006045,0.00013465,111250.0,111240.0,1.14828944]
[1760551006295,0.00013465,111250.0,111240.0,1.03612944]
[1760551006467,0.00013465,111250.0,111240.0,1.14828944]
[1760551006670,0.00013465,111250.0,111240.0,0.61848247]
[1760551006877,0.00013465,111250.0,111240.0,0.73264247]
[1760551007228,0.00013465,111250.0,111240.0,0.61948247]
[1760551007434,0.00013465,111250.0,111240.0,0.73264247]
[1760551007639,0.00013465,111250.0,111240.0,0.73164247]
[1760551007844,0.00013465,111250.0,111240.0,0.73264247]
[1760551008049,0.00013465,111250.0,111240.0,0.61948247]
[1760551008472,0.00013465,111250.0,111240.0,0.73264247]
[1760551008696,0.00013465,111250.0,111240.0,0.61948247]
[1760551008901,0.00013465,111250.0,111240.0,0.73264247]
[1760551009697,0.00013465,111250.0,111240.0,0.61948247]
[1760551009903,0.00013465,111250.0,111240.0,0.72364156]
[1760551010301,0.00013465,111250.0,111240.0,0.61048156]
[1760551010467,0.00013465,111250.0,111240.0,0.72364156]
[1760551010671,0.00013465,111250.0,111240.0,0.61048156]
[1760551010877,0.00013465,111250.0,111240.0,0.43069012]
[1760551011067,0.00013465,111250.0,111240.0,0.72364156]
[1760551011701,0.00013465,111250.0,111240.0,0.61048156]
[1760551012115,0.5965569,111250.0,111240.0,0.09069012]
[1760551012313,0.5965569,111250.0,111240.0,0.08969012]
[1760551012869,0.5965569,111250.0,111240.0,0.09069012]
[1760551013210,0.17990993,111250.0,111240.0,0.09069012]
[1760551013410,0.5965569,111250.0,111240.0,0.09069012]
[1760551013592,0.17990993,111250.0,111240.0,0.09069012]
[1760551013996,0.00013465,111250.0,111240.0,0.09069012]
[1760551014197,0.17990993,111250.0,111240.0,0.09069012]
[1760551014913,0.00013465,111250.0,111240.0,0.27048156]
[1760551015335,0.17990993,111250.0,111240.0,0.08969012]
[1760551015514,0.17990993,111250.0,111240.0,0.09069012]
[1760551016028,0.17990993,111250.0,111240.0,0.08969012]
[1760551016235,0.17990993,111250.0,111240.0,0.09069012]
[1760551016470,0.5965569,111250.0,111240.0,0.09069012]
[1760551016820,0.17990993,111250.0,111240.0,0.09069012]
[1760551017023,0.5965569,111250.0,111240.0,0.09069012]
[1760551017427,0.17990993,111250.0,111240.0,0.09069012]
[1760551019819,0.17990993,111250.0,111240.0,0.27048156]
[1760551020039,0.17990993,111250.0,111240.0,0.09069012]
[1760551020907,0.00013465,111250.0,111240.0,0.27048156]
[1760551021142,0.00013465,111250.0,111240.0,1.02712853]
[1760551021603,0.00013465,111250.0,111240.0,1.14028853]
[1760551021844,0.00013465,111250.0,111240.0,1.02612853]
[1760551022241,0.00013465,111250.0,111240.0,1.13928853]
[1760551022496,0.00013465,111250.0,111240.0,1.02712853]
[1760551022673,0.00013465,111250.0,111240.0,1.14028853]
[1760551022848,0.00013465,111250.0,111240.0,1.02712853]
[1760551023050,0.00013465,111250.0,111240.0,1.02612853]
[1760551023255,0.00013465,111250.0,111240.0,1.13928853]
[1760551023462,0.00013465,111250.0,111240.0,1.02712853]
[1760551023665,0.00013465,111250.0,111240.0,1.14028853]
[1760551023866,0.00013465,111250.0,111240.0,1.02712853]
[1760551024098,0.00013465,111250.0,111240.0,1.14028853]
[1760551024308,0.00013465,111250.0,111240.0,1.02712853]
[1760551024536,0.00013465,111250.0,111240.0,1.14028853]
[1760551024739,0.5965569,111250.0,111240.0,0.43069012]
[1760551024953,0.5965569,111250.0,111240.0,0.09069012]
[1760551025153,0.67424744,111250.0,111240.0,0.09069012]
[1760551025995,0.5965569,111250.0,111240.0,0.09069012]
[1760551030164,0.5965569,111250.0,111240.0,0.001]
[1760551030632,1.01320387,111250.0,111240.0,0.001]
[1760551031748,0.17982377,111220.0,111210.0,0.34]
[1760551031978,0.17982377,111220.0,111210.0,0.08969012]
[1760551031979,0.59647074,111220.0,111210.0,0.08969012]
[1760551032189,0.17982377,111220.0,111210.0,0.08969012]
[1760551033160,0.59647074,111220.0,111210.0,0.09069012]
[1760551033367,1.01356493,111220.0,111210.0,0.001]
[1760551035446,0.65347403,111220.0,111210.0,0.001]
[1760551037119,0.6626395,111220.0,111210.0,0.001]
[1760551037858,0.74688566,111220.0,111210.0,0.001]
[1760551039053,0.73772019,111220.0,111210.0,0.001]
[1760551039941,0.17982377,111220.0,111210.0,0.09069012]
[1760551040551,0.6534724,111230.0,111210.0,0.09069012]
[1760551040756,0.18880916,111240.0,111220.0,0.08969012]
[1760551040963,0.18889869,111250.0,111220.0,0.6095112]
[1760551041160,0.00013465,111250.0,111240.0,0.17979144]
[1760551041504,0.17990993,111250.0,111240.0,0.08969012]
[1760551041939,0.17990993,111250.0,111240.0,0.60948156]
[1760551041940,0.00013465,111250.0,111240.0,0.60948156]
[1760551042381,0.00013465,111250.0,111240.0,0.42969012]
[1760551042560,0.17990993,111250.0,111240.0,0.60948156]
[1760551042797,0.00013465,111250.0,111240.0,0.60948156]
[1760551043867,0.00013465,111250.0,111240.0,0.61048156]
[1760551044072,0.00013465,111250.0,111240.0,0.72364156]
[1760551044296,0.00013465,111250.0,111240.0,1.19629182]
[1760551044508,0.00013465,111250.0,111240.0,1.08413182]
[1760551044721,0.00013465,111250.0,111240.0,1.19729182]
[1760551044930,0.00013465,111250.0,111240.0,1.67094208]
[1760551045141,0.00013465,111250.0,111240.0,1.19629182]
[1760551045356,0.00013465,111250.0,111240.0,1.08313182]
[1760551045570,0.00013465,111250.0,111240.0,1.08413182]
[1760551046016,0.00013465,111250.0,111240.0,1.55778208]
[1760551046226,0.00013465,111250.0,111240.0,1.08413182]
[1760551046435,0.00013465,111250.0,111240.0,1.19729182]
[1760551046878,0.00013465,111250.0,111240.0,1.19629182]
[1760551047102,0.00013465,111250.0,111240.0,1.08413182]
[1760551047558,0.00013465,111250.0,111240.0,1.19729182]
[1760551047780,0.00013465,111250.0,111240.0,1.08413182]
[1760551048222,0.00013465,111250.0,111240.0,1.19729182]
[1760551049526,0.00013465,111250.0,111240.0,1.95778208]
[1760551049951,0.00013465,111250.0,111240.0,2.07094208]
[1760551050363,0.00013465,111250.0,111240.0,2.06994208]
[1760551050625,0.00013465,111250.0,111240.0,2.09695485]
[1760551050841,0.00058676,111260.0,111250.0,0.99342554]
[1760551051064,0.00058676,111260.0,111250.0,1.19627566]
[1760551051306,0.00058676,111260.0,111250.0,1.11929794]
[1760551051528,0.00058676,111260.0,111250.0,1.23245794]
[1760551051985,0.00058676,111260.0,111250.0,0.64564768]
[1760551052185,0.00058676,111260.0,111250.0,1.11929794]
[1760551053093,0.00058676,111260.0,111250.0,0.64564768]
[1760551053532,0.00058676,111260.0,111250.0,0.75884768]
[1760551053748,0.00058676,111260.0,111250.0,0.64564768]
[1760551053968,0.00058676,111260.0,111250.0,1.11929794]
[1760551054177,0.00058676,111260.0,111250.0,1.23249794]
[1760551055060,0.00058676,111260.0,111250.0,1.11929794]
[1760551055269,0.00058676,111260.0,111250.0,1.23249794]
[1760551055494,0.00058676,111260.0,111250.0,1.11929794]
[1760551055717,0.00058676,111260.0,111250.0,1.23249794]
[1760551056025,0.00058676,111260.0,111250.0,1.11929794]
[1760551056232,0.00058676,111260.0,111250.0,1.23245794]
[1760551056444,0.00058676,111260.0,111250.0,1.11929794]
[1760551056605,0.00058676,111260.0,111250.0,0.75880768]
[1760551056806,0.00058676,111260.0,111250.0,1.11929794]
[1760551057012,0.00058676,111260.0,111250.0,1.23245794]
[1760551057194,0.00058676,111260.0,111250.0,1.11929794]
[1760551057398,0.00058676,111260.0,111250.0,1.23245794]
[1760551058061,0.00058676,111260.0,111250.0,1.11929794]
[1760551058262,0.00058676,111260.0,111250.0,1.23245794]
[1760551058473,0.00058676,111260.0,111250.0,1.11929794]
[1760551058651,0.00058676,111260.0,111250.0,1.23245794]